[Event "*** Titled Tuesday 3|2 Blitz"]
[Site "Chess.com"]
[Date "2016.02.02"]
[Round "1"]
[White "HovmoellerHest"]
[Black "maciek_92"]
[Result "0-1"]
[WhiteElo "2164"]
[BlackElo "2477"]
[TimeControl "180+2"]
[EndTime "11:10:30 PST"]
[Termination "maciek_92 won by resignation"]

1. d4 {[%clk 0:02:51.2]} 1... Nf6 {[%clk 0:01:31.7]} 2. Nf3 {[%clk 0:02:53.1]}
2... e6 {[%clk 0:01:32.5]} 3. Ng1 {[%clk 0:02:55]} 3... c5 {[%clk 0:01:33.1]} 4.
Nf3 {[%clk 0:02:56.9]} 4... Nc6 {[%clk 0:01:34]} 5. Ng1 {[%clk 0:02:58.8]} 5...
cxd4 {[%clk 0:01:34.8]} 6. c3 {[%clk 0:03:00.7]} 6... dxc3 {[%clk 0:01:35.4]} 7.
Nxc3 {[%clk 0:03:01.1]} 7... d5 {[%clk 0:01:36.6]} 8. Bg5 {[%clk 0:02:58.6]}
8... Be7 {[%clk 0:01:37.1]} 9. e3 {[%clk 0:02:56.6]} 9... O-O {[%clk 0:01:37.4]}
10. Nf3 {[%clk 0:02:57.2]} 10... h6 {[%clk 0:01:38.5]} 11. Bh4 {[%clk
0:02:58.2]} 11... Ne4 {[%clk 0:01:37]} 12. Bxe7 {[%clk 0:02:58]} 12... Qxe7
{[%clk 0:01:38.8]} 13. Nxe4 {[%clk 0:02:53.5]} 13... dxe4 {[%clk 0:01:39.5]} 14.
Nd2 {[%clk 0:02:55.2]} 14... Rd8 {[%clk 0:01:40.7]} 15. Bc4 {[%clk 0:02:42.5]}
15... Ne5 {[%clk 0:01:40.4]} 16. Qc2 {[%clk 0:02:33.5]} 16... Rxd2 {[%clk
0:01:35.1]} 17. Kxd2 {[%clk 0:02:26.3]} 17... Qb4+ {[%clk 0:01:35.3]} 18. Ke2
{[%clk 0:02:24.8]} 18... Nxc4 {[%clk 0:01:31.3]} 19. b3 {[%clk 0:02:14.4]} 19...
Ne5 {[%clk 0:01:32]} 20. a3 {[%clk 0:02:13.1]} 20... Qb5+ {[%clk 0:01:32.9]} 21.
Kd2 {[%clk 0:02:11.2]} 21... Nd3 {[%clk 0:01:32.9]} 22. f3 {[%clk 0:02:01.9]}
22... f5 {[%clk 0:01:27.8]} 23. fxe4 {[%clk 0:01:59.2]} 23... fxe4 {[%clk
0:01:29.7]} 24. Qc4 {[%clk 0:01:55.9]} 24... Qxc4 {[%clk 0:01:28.1]} 25. bxc4
{[%clk 0:01:57.2]} 25... Bd7 {[%clk 0:01:29.4]} 26. Kc3 {[%clk 0:01:56.2]} 26...
e5 {[%clk 0:01:30.6]} 27. a4 {[%clk 0:01:56.3]} 27... Rc8 {[%clk 0:01:31.3]} 28.
Rhb1 {[%clk 0:01:53.7]} 28... Nc5 {[%clk 0:01:29.3]} 29. Rb4 {[%clk 0:01:52.1]}
29... Be6 {[%clk 0:01:28.8]} 30. a5 {[%clk 0:01:52.6]} 30... a6 {[%clk
0:01:28.9]} 31. Rd1 {[%clk 0:01:51.6]} 31... Rf8 {[%clk 0:01:29.2]} 32. Rd2
{[%clk 0:01:49]} 32... Rf1 {[%clk 0:01:29.2]} 33. Rb6 {[%clk 0:01:49.3]} 33...
Kf7 {[%clk 0:01:30.1]} 34. Kb4 {[%clk 0:01:45.3]} 34... Nd3+ {[%clk 0:01:29.5]}
35. Kc3 {[%clk 0:01:43.7]} 35... Rc1+ {[%clk 0:01:27.9]} 36. Rc2 {[%clk
0:01:44.9]} 36... Rxc2+ {[%clk 0:01:26.7]} 37. Kxc2 {[%clk 0:01:46.3]} 37... Nc5
{[%clk 0:01:27.7]} 38. Kc3 {[%clk 0:01:47.6]} 38... Bd7 {[%clk 0:01:29]} 39. Rb1
{[%clk 0:01:47.1]} 39... Bc6 {[%clk 0:01:29.4]} 40. Rd1 {[%clk 0:01:47]} 40...
Ke7 {[%clk 0:01:27.4]} 41. Rf1 {[%clk 0:01:45.9]} 41... Nd7 {[%clk 0:01:27]} 42.
Kb4 {[%clk 0:01:45.8]} 42... Nf6 {[%clk 0:01:25.3]} 43. h3 {[%clk 0:01:44.9]}
43... g6 {[%clk 0:01:16.6]} 44. Kc5 {[%clk 0:01:44.5]} 44... h5 {[%clk
0:01:17.3]} 45. Rd1 {[%clk 0:01:35.4]} 45... Nd7+ {[%clk 0:01:17.6]} 46. Kb4
{[%clk 0:01:36.5]} 46... Ke6 {[%clk 0:01:14.4]} 47. Rf1 {[%clk 0:01:34.9]} 47...
Nf6 {[%clk 0:01:15.1]} 48. Kc5 {[%clk 0:01:35]} 48... g5 {[%clk 0:01:16.1]} 49.
Kb6 {[%clk 0:01:33.5]} 49... Nd7+ {[%clk 0:01:15.5]} 50. Kc7 {[%clk 0:01:33.5]}
50... Nc5 {[%clk 0:01:16.4]} 51. Rf8 {[%clk 0:01:34]} 51... h4 {[%clk
0:01:15.1]} 52. Rg8 {[%clk 0:01:29.8]} 52... Kf7 {[%clk 0:01:14.3]} 53. Rb8
{[%clk 0:01:28.2]} 53... Ke7 {[%clk 0:01:14.9]} 54. Rg8 {[%clk 0:01:27]} 54...
Ne6+ {[%clk 0:01:14.9]} 55. Kb6 {[%clk 0:01:27.4]} 55... Kf7 {[%clk 0:01:14.4]}
56. Rb8 {[%clk 0:01:27]} 56... Nf4 {[%clk 0:01:04.7]} 57. Rc8 {[%clk 0:00:30.6]}
57... Nxg2 {[%clk 0:00:57.7]} 58. Rxc6 {[%clk 0:00:31.5]} 58... bxc6 {[%clk
0:00:58.7]} 59. Kxa6 {[%clk 0:00:32.8]} 59... g4 {[%clk 0:01:00.2]} 60. Kb6
{[%clk 0:00:27.8]} 60... gxh3 {[%clk 0:01:00.9]} 61. a6 {[%clk 0:00:29.3]} 61...
h2 {[%clk 0:01:02]} 62. a7 {[%clk 0:00:30.8]} 62... h1=Q {[%clk 0:01:03.6]} 63.
a8=Q {[%clk 0:00:31.3]} 63... Nxe3 {[%clk 0:01:03.7]} 64. Qb7+ {[%clk
0:00:30.9]} 64... Kf6 {[%clk 0:01:01.5]} 65. Qxc6+ {[%clk 0:00:31.6]} 65... Kg5
{[%clk 0:01:02.6]} 66. Qe6 {[%clk 0:00:28.9]} 66... Nf5 {[%clk 0:01:02.2]} 67.
Qxe5 {[%clk 0:00:27.6]} 67... Qb1+ {[%clk 0:01:02.6]} 68. Kc5 {[%clk 0:00:27.2]}
68... e3 {[%clk 0:01:03.6]} 69. Qe6 {[%clk 0:00:26.2]} 69... Qd3 {[%clk
0:01:03.5]} 70. Qg8+ {[%clk 0:00:24.3]} 70... Kf4 {[%clk 0:01:04.2]} 71. Qb8+
{[%clk 0:00:24.7]} 71... Qd6+ {[%clk 0:01:03.2]} 72. Qxd6+ {[%clk 0:00:24.7]}
72... Nxd6 {[%clk 0:01:05]} 73. Kxd6 {[%clk 0:00:26.3]} 73... e2 {[%clk
0:01:06.8]} 74. c5 {[%clk 0:00:28.1]} 74... e1=Q {[%clk 0:01:08.7]} 75. c6
{[%clk 0:00:29.8]} 75... Qd2+ {[%clk 0:01:10.2]} 0-1

[Event "*** Titled Tuesday 3|2 Blitz"]
[Site "Chess.com"]
[Date "2016.02.02"]
[Round "1"]
[White "JusticeBot"]
[Black "mssjust"]
[Result "0-1"]
[WhiteElo "2431"]
[BlackElo "2347"]
[TimeControl "180+2"]
[EndTime "11:10:46 PST"]
[Termination "mssjust won by checkmate"]

1. e4 {[%clk 0:03:01.9]} 1... c5 {[%clk 0:02:57.5]} 2. c3 {[%clk 0:03:03.2]}
2... d5 {[%clk 0:02:50.5]} 3. exd5 {[%clk 0:03:05.1]} 3... Qxd5 {[%clk
0:02:49.9]} 4. d4 {[%clk 0:03:07]} 4... Nf6 {[%clk 0:02:48.8]} 5. Nf3 {[%clk
0:03:08.4]} 5... e6 {[%clk 0:02:46.3]} 6. Be2 {[%clk 0:03:09.1]} 6... Be7 {[%clk
0:02:44.4]} 7. O-O {[%clk 0:03:10.2]} 7... cxd4 {[%clk 0:02:40.6]} 8. cxd4
{[%clk 0:03:12.1]} 8... O-O {[%clk 0:02:40.1]} 9. Ne5 {[%clk 0:03:13.3]} 9...
Nc6 {[%clk 0:02:37.8]} 10. Bf3 {[%clk 0:02:59.5]} 10... Qb5 {[%clk 0:02:29.6]}
11. Nc3 {[%clk 0:02:40.4]} 11... Qb6 {[%clk 0:02:30.3]} 12. Be3 {[%clk
0:02:26.7]} 12... Qxb2 {[%clk 0:02:28.4]} 13. Nxc6 {[%clk 0:01:54.3]} 13... bxc6
{[%clk 0:02:25.9]} 14. Bxc6 {[%clk 0:01:48.5]} 14... Ba6 {[%clk 0:02:26.7]} 15.
Bxa8 {[%clk 0:00:58.7]} 15... Bxf1 {[%clk 0:02:26.8]} 16. Na4 {[%clk 0:00:47.2]}
16... Qa3 {[%clk 0:02:26.9]} 17. Bf3 {[%clk 0:00:44.4]} 17... Bc4 {[%clk
0:02:23.3]} 18. Nc5 {[%clk 0:00:45.2]} 18... Bd5 {[%clk 0:02:21.2]} 19. Bxd5
{[%clk 0:00:41.3]} 19... Nxd5 {[%clk 0:02:19.6]} 20. Qb3 {[%clk 0:00:42.9]}
20... Qa5 {[%clk 0:02:12.4]} 21. Rc1 {[%clk 0:00:38.9]} 21... Nxe3 {[%clk
0:02:10.6]} 22. fxe3 {[%clk 0:00:40.8]} 22... Qd2 {[%clk 0:02:05.7]} 23. Rd1
{[%clk 0:00:38.2]} 23... Qe2 {[%clk 0:02:04.2]} 24. Ne4 {[%clk 0:00:33.6]} 24...
Rc8 {[%clk 0:02:00.1]} 25. Ng3 {[%clk 0:00:34.8]} 25... Qc2 {[%clk 0:01:57.7]}
26. Rb1 {[%clk 0:00:19.2]} 26... g6 {[%clk 0:01:51.6]} 27. Qxc2 {[%clk
0:00:17.5]} 27... Rxc2 {[%clk 0:01:50.4]} 28. a4 {[%clk 0:00:18.6]} 28... Ra2
{[%clk 0:01:47.5]} 29. Rb7 {[%clk 0:00:18]} 29... Bg5 {[%clk 0:01:44.9]} 30. Nf1
{[%clk 0:00:19.4]} 30... Rxa4 {[%clk 0:01:40]} 31. Kf2 {[%clk 0:00:20.8]} 31...
Ra2+ {[%clk 0:01:38.8]} 32. Kf3 {[%clk 0:00:22.1]} 32... a5 {[%clk 0:01:36.7]}
33. Ng3 {[%clk 0:00:22.9]} 33... Ra3 {[%clk 0:01:31.8]} 34. Nf1 {[%clk
0:00:21.2]} 34... Kg7 {[%clk 0:01:29.4]} 35. g3 {[%clk 0:00:21.4]} 35... h5
{[%clk 0:01:26.8]} 36. h4 {[%clk 0:00:22.5]} 36... Bf6 {[%clk 0:01:25.5]} 37.
Nd2 {[%clk 0:00:23.4]} 37... Bxd4 {[%clk 0:01:22.9]} 38. Nc4 {[%clk 0:00:24.7]}
38... Rc3 {[%clk 0:01:21.1]} 39. Nd6 {[%clk 0:00:13.3]} 39... Rxe3+ {[%clk
0:01:19.2]} 40. Kg2 {[%clk 0:00:12.4]} 40... Re2+ {[%clk 0:01:16.5]} 41. Kf3
{[%clk 0:00:13.7]} 41... Rf2+ {[%clk 0:01:15.9]} 42. Ke4 {[%clk 0:00:15.2]}
42... Bc5 {[%clk 0:01:13.8]} 43. Ne8+ {[%clk 0:00:15.2]} 43... Kf8 {[%clk
0:01:11.9]} 44. Nc7 {[%clk 0:00:16.3]} 44... Bd6 {[%clk 0:01:04.4]} 45. Nb5
{[%clk 0:00:14.1]} 45... Bxg3 {[%clk 0:01:03]} 46. Ra7 {[%clk 0:00:14.7]} 46...
Ra2 {[%clk 0:00:57.3]} 47. Nc3 {[%clk 0:00:12.5]} 47... Ra3 {[%clk 0:00:56.4]}
48. Nb5 {[%clk 0:00:12]} 48... f5+ {[%clk 0:00:54.7]} 49. Kd4 {[%clk 0:00:12.6]}
49... Bf2+ {[%clk 0:00:52.3]} 50. Ke5 {[%clk 0:00:14]} 50... Bxa7 {[%clk
0:00:51.6]} 51. Nxa3 {[%clk 0:00:15.6]} 51... Ke7 {[%clk 0:00:48.1]} 52. Nb5
{[%clk 0:00:16.7]} 52... Bf2 {[%clk 0:00:48.1]} 53. Kf4 {[%clk 0:00:13.9]} 53...
Bxh4 {[%clk 0:00:48.6]} 54. Nd4 {[%clk 0:00:15.5]} 54... g5+ {[%clk 0:00:44.9]}
55. Ke3 {[%clk 0:00:16.7]} 55... Kd6 {[%clk 0:00:45.7]} 56. Nb3 {[%clk
0:00:14.2]} 56... a4 {[%clk 0:00:45.8]} 57. Nd2 {[%clk 0:00:15.5]} 57... Kd5
{[%clk 0:00:44]} 58. Nb1 {[%clk 0:00:16.4]} 58... f4+ {[%clk 0:00:44.3]} 59. Kf3
{[%clk 0:00:17.1]} 59... Kd4 {[%clk 0:00:45.4]} 60. Na3 {[%clk 0:00:17.4]} 60...
e5 {[%clk 0:00:44.7]} 61. Nb5+ {[%clk 0:00:18.9]} 61... Kc5 {[%clk 0:00:41.7]}
62. Na3 {[%clk 0:00:17.5]} 62... g4+ {[%clk 0:00:39.2]} 63. Ke4 {[%clk
0:00:17.9]} 63... f3 {[%clk 0:00:39.6]} 64. Ke3 {[%clk 0:00:16.8]} 64... f2
{[%clk 0:00:40.7]} 65. Ke2 {[%clk 0:00:17.6]} 65... Kb4 {[%clk 0:00:40.3]} 66.
Nc2+ {[%clk 0:00:18.3]} 66... Kc3 {[%clk 0:00:40.6]} 67. Na3 {[%clk 0:00:17.5]}
67... Kb3 {[%clk 0:00:39.3]} 68. Nb1 {[%clk 0:00:17.6]} 68... a3 {[%clk
0:00:39.9]} 69. Nxa3 {[%clk 0:00:16.7]} 69... Kxa3 {[%clk 0:00:41]} 70. Kf1
{[%clk 0:00:18]} 70... Kb2 {[%clk 0:00:41.3]} 71. Kg2 {[%clk 0:00:19.9]} 71...
e4 {[%clk 0:00:41.9]} 72. Kf1 {[%clk 0:00:21.8]} 72... Kc2 {[%clk 0:00:42]} 73.
Ke2 {[%clk 0:00:23.7]} 73... e3 {[%clk 0:00:42.6]} 74. Kf1 {[%clk 0:00:25.6]}
74... Kd1 {[%clk 0:00:43.8]} 75. Kg2 {[%clk 0:00:27.2]} 75... e2 {[%clk
0:00:44.7]} 76. Kh2 {[%clk 0:00:29.1]} 76... e1=Q {[%clk 0:00:44.6]} 77. Kg2
{[%clk 0:00:31]} 77... Qg1# {[%clk 0:00:44.1]} 0-1

[Event "*** Titled Tuesday 3|2 Blitz"]
[Site "Chess.com"]
[Date "2016.02.02"]
[Round "1"]
[White "MasterLeif"]
[Black "pedromartinez91"]
[Result "1-0"]
[WhiteElo "2351"]
[BlackElo "1954"]
[TimeControl "180+2"]
[EndTime "11:13:02 PST"]
[Termination "MasterLeif won by checkmate"]

1. e4 {[%clk 0:02:58.6]} 1... c5 {[%clk 0:02:55.2]} 2. Nf3 {[%clk 0:02:59.1]}
2... Nc6 {[%clk 0:02:52.3]} 3. d4 {[%clk 0:02:59.8]} 3... cxd4 {[%clk
0:02:52.6]} 4. Nxd4 {[%clk 0:03:01.7]} 4... g6 {[%clk 0:02:53.6]} 5. Nc3 {[%clk
0:03:02.5]} 5... Bg7 {[%clk 0:02:54.8]} 6. Be3 {[%clk 0:03:04.1]} 6... Nf6
{[%clk 0:02:55.8]} 7. Nxc6 {[%clk 0:03:05.7]} 7... bxc6 {[%clk 0:02:55.1]} 8. e5
{[%clk 0:03:06.8]} 8... Ng8 {[%clk 0:02:55.1]} 9. f4 {[%clk 0:03:08.4]} 9... f6
{[%clk 0:02:56]} 10. e6 {[%clk 0:03:08]} 10... dxe6 {[%clk 0:02:44.9]} 11. Qxd8+
{[%clk 0:02:52.1]} 11... Kxd8 {[%clk 0:02:45.8]} 12. O-O-O+ {[%clk 0:02:52.2]}
12... Kc7 {[%clk 0:02:32.5]} 13. Bc4 {[%clk 0:02:48.8]} 13... Nh6 {[%clk
0:02:27.8]} 14. Rhe1 {[%clk 0:02:42.4]} 14... e5 {[%clk 0:02:21.7]} 15. fxe5
{[%clk 0:02:39]} 15... fxe5 {[%clk 0:02:10]} 16. h3 {[%clk 0:02:01.1]} 16... Nf5
{[%clk 0:02:09]} 17. Bg5 {[%clk 0:01:54.6]} 17... Bf6 {[%clk 0:02:05.7]} 18. Ne4
{[%clk 0:01:51.2]} 18... Bxg5+ {[%clk 0:01:53.8]} 19. Nxg5 {[%clk 0:01:53.1]}
19... Nd6 {[%clk 0:01:50.6]} 20. Be6 {[%clk 0:01:25.9]} 20... h6 {[%clk
0:01:43.7]} 21. Bxc8 {[%clk 0:01:26.5]} 21... hxg5 {[%clk 0:01:44.6]} 22. Be6
{[%clk 0:01:13.4]} 22... e4 {[%clk 0:01:42.7]} 23. c4 {[%clk 0:01:12.9]} 23...
c5 {[%clk 0:01:35.3]} 24. b3 {[%clk 0:01:09.1]} 24... a5 {[%clk 0:01:34.1]} 25.
Kc2 {[%clk 0:01:02.7]} 25... Raf8 {[%clk 0:01:33.8]} 26. Re2 {[%clk 0:01:01.4]}
26... Rf6 {[%clk 0:01:33.5]} 27. Bd5 {[%clk 0:01:02.6]} 27... Rh4 {[%clk
0:01:33.9]} 28. Rde1 {[%clk 0:01:03.5]} 28... g4 {[%clk 0:01:34]} 29. hxg4
{[%clk 0:00:54.1]} 29... Rxg4 {[%clk 0:01:34.2]} 30. Kc3 {[%clk 0:00:54.3]}
30... Rff4 {[%clk 0:01:24.9]} 31. Kb2 {[%clk 0:00:49.6]} 31... Kd7 {[%clk
0:01:19.2]} 32. Ka3 {[%clk 0:00:49.7]} 32... e6 {[%clk 0:01:19]} 33. Ba8 {[%clk
0:00:50.9]} 33... Kc7 {[%clk 0:01:17.8]} 34. Ka4 {[%clk 0:00:48.3]} 34... Kb6
{[%clk 0:01:17.9]} 35. a3 {[%clk 0:00:42.5]} 35... g5 {[%clk 0:01:07.1]} 36. g3
{[%clk 0:00:34.8]} 36... Rxg3 {[%clk 0:01:06.7]} 37. Bxe4 {[%clk 0:00:36.5]}
37... e5 {[%clk 0:00:51.8]} 38. Bc2 {[%clk 0:00:36.7]} 38... Rc3 {[%clk
0:00:50.3]} 39. Rxe5 {[%clk 0:00:19.6]} 39... Nxc4 {[%clk 0:00:50.2]} 40. Re6+
{[%clk 0:00:19.1]} 40... Nd6+ {[%clk 0:00:50.6]} 41. b4 {[%clk 0:00:19.3]} 41...
axb4 {[%clk 0:00:46.9]} 42. Rxd6+ {[%clk 0:00:18.8]} 42... Kc7 {[%clk 0:00:48]}
43. Red1 {[%clk 0:00:10.9]} 43... bxa3+ {[%clk 0:00:45.8]} 44. Ka5 {[%clk
0:00:10.6]} 44... Rd4 {[%clk 0:00:39.8]} 45. R6xd4 {[%clk 0:00:08.3]} 45... cxd4
{[%clk 0:00:41]} 46. Bg6 {[%clk 0:00:05.3]} 46... Rc6 {[%clk 0:00:29.2]} 47. Be4
{[%clk 0:00:03.8]} 47... Rc5+ {[%clk 0:00:25.3]} 48. Kb4 {[%clk 0:00:05.1]}
48... Re5 {[%clk 0:00:26.4]} 49. Bd3 {[%clk 0:00:06.3]} 49... Re3 {[%clk
0:00:25.5]} 50. Kxa3 {[%clk 0:00:06.9]} 50... Kd6 {[%clk 0:00:26.7]} 51. Kb3
{[%clk 0:00:08.4]} 51... Ke5 {[%clk 0:00:27.8]} 52. Kc4 {[%clk 0:00:09.8]} 52...
g4 {[%clk 0:00:28.4]} 53. Rg1 {[%clk 0:00:10.3]} 53... g3 {[%clk 0:00:29.1]} 54.
Rg2 {[%clk 0:00:11.7]} 54... Rf3 {[%clk 0:00:27.5]} 55. Re2+ {[%clk 0:00:12.1]}
55... Re3 {[%clk 0:00:25.5]} 56. Rg2 {[%clk 0:00:13.1]} 56... Rf3 {[%clk
0:00:24.7]} 57. Rg1 {[%clk 0:00:14.5]} 57... Re3 {[%clk 0:00:22.6]} 58. Rg2
{[%clk 0:00:14.9]} 58... Kf4 {[%clk 0:00:17.2]} 59. Kxd4 {[%clk 0:00:14.8]}
59... Re7 {[%clk 0:00:18.7]} 60. Bc4 {[%clk 0:00:13.9]} 60... Rd7+ {[%clk
0:00:17.3]} 61. Bd5 {[%clk 0:00:15]} 61... Kg4 {[%clk 0:00:18.8]} 62. Rg1 {[%clk
0:00:15.7]} 62... Re7 {[%clk 0:00:19]} 63. Be4 {[%clk 0:00:15.8]} 63... Kf4
{[%clk 0:00:19.6]} 64. Rf1+ {[%clk 0:00:16.7]} 64... Kg4 {[%clk 0:00:20.9]} 65.
Ke3 {[%clk 0:00:17.7]} 65... Kh3 {[%clk 0:00:19.9]} 66. Rh1+ {[%clk 0:00:18.8]}
66... Kg4 {[%clk 0:00:20.7]} 67. Rg1 {[%clk 0:00:17]} 67... Kh3 {[%clk
0:00:20.7]} 68. Rh1+ {[%clk 0:00:17.2]} 68... Kg4 {[%clk 0:00:21.4]} 69. Rh8
{[%clk 0:00:16.6]} 69... Rg7 {[%clk 0:00:19.6]} 70. Bf3+ {[%clk 0:00:15.6]}
70... Kg5 {[%clk 0:00:20.4]} 71. Rh5+ {[%clk 0:00:15.8]} 71... Kf6 {[%clk
0:00:21.5]} 72. Bg2 {[%clk 0:00:10.4]} 72... Kg6 {[%clk 0:00:19.8]} 73. Rd5
{[%clk 0:00:09.8]} 73... Kf6 {[%clk 0:00:20.8]} 74. Kf3 {[%clk 0:00:10.6]} 74...
Ke6 {[%clk 0:00:22]} 75. Rh5 {[%clk 0:00:11]} 75... Kf6 {[%clk 0:00:22.9]} 76.
Rh1 {[%clk 0:00:11.8]} 76... Ke6 {[%clk 0:00:23.9]} 77. Re1+ {[%clk 0:00:13.1]}
77... Kd6 {[%clk 0:00:19.2]} 78. Bh3 {[%clk 0:00:14.5]} 78... Kd5 {[%clk
0:00:20.3]} 79. Bg4 {[%clk 0:00:14.8]} 79... g2 {[%clk 0:00:19.4]} 80. Rg1
{[%clk 0:00:16.5]} 80... Ke5 {[%clk 0:00:20.3]} 81. Rxg2 {[%clk 0:00:16.8]}
81... Ra7 {[%clk 0:00:21.1]} 82. Re2+ {[%clk 0:00:17.8]} 82... Kf6 {[%clk
0:00:21.8]} 83. Re4 {[%clk 0:00:17.6]} 83... Ra3+ {[%clk 0:00:22.1]} 84. Kf4
{[%clk 0:00:18.6]} 84... Ra5 {[%clk 0:00:22.5]} 85. Re6+ {[%clk 0:00:19.4]}
85... Kf7 {[%clk 0:00:23.6]} 86. Rc6 {[%clk 0:00:17.1]} 86... Rb5 {[%clk
0:00:21.1]} 87. Bf5 {[%clk 0:00:17.9]} 87... Rb2 {[%clk 0:00:16.5]} 88. Be4
{[%clk 0:00:12]} 88... Rb5 {[%clk 0:00:14.4]} 89. Bd3 {[%clk 0:00:12.1]} 89...
Ra5 {[%clk 0:00:13]} 90. Bf5 {[%clk 0:00:11.7]} 90... Ke7 {[%clk 0:00:13.5]} 91.
Re6+ {[%clk 0:00:11.8]} 91... Kf7 {[%clk 0:00:14]} 92. Kg5 {[%clk 0:00:12.8]}
92... Ra7 {[%clk 0:00:11.9]} 93. Rh6 {[%clk 0:00:13.1]} 93... Ra1 {[%clk
0:00:09]} 94. Rh7+ {[%clk 0:00:13.6]} 94... Ke8 {[%clk 0:00:10]} 95. Kf6 {[%clk
0:00:13]} 95... Re1 {[%clk 0:00:10.9]} 96. Rh8# {[%clk 0:00:11]} 1-0

[Event "*** Titled Tuesday 3|2 Blitz"]
[Site "Chess.com"]
[Date "2016.02.02"]
[Round "2"]
[White "Tesla37"]
[Black "Danirod"]
[Result "1-0"]
[WhiteElo "2567"]
[BlackElo "2383"]
[TimeControl "180+2"]
[EndTime "11:20:32 PST"]
[Termination "Tesla37 won by resignation"]

1. e4 {[%clk 0:03:01.9]} 1... c5 {[%clk 0:03:00.9]} 2. Nf3 {[%clk 0:03:02.6]}
2... g6 {[%clk 0:03:02]} 3. Nc3 {[%clk 0:03:01.1]} 3... Bg7 {[%clk 0:03:01.4]}
4. d4 {[%clk 0:03:02.6]} 4... cxd4 {[%clk 0:03:02.7]} 5. Nxd4 {[%clk 0:03:04.2]}
5... Nc6 {[%clk 0:03:04]} 6. Nde2 {[%clk 0:03:05.2]} 6... d6 {[%clk 0:03:01.9]}
7. g3 {[%clk 0:03:06.4]} 7... h5 {[%clk 0:03:03.1]} 8. h3 {[%clk 0:03:05.9]}
8... Nf6 {[%clk 0:03:03.6]} 9. Bg2 {[%clk 0:03:04.8]} 9... Bd7 {[%clk
0:03:04.8]} 10. Bg5 {[%clk 0:03:03.5]} 10... Qa5 {[%clk 0:03:02.8]} 11. Qd2
{[%clk 0:03:01.8]} 11... Ne5 {[%clk 0:02:57.1]} 12. b3 {[%clk 0:03:01]} 12...
Rc8 {[%clk 0:02:57.4]} 13. Rd1 {[%clk 0:02:50.5]} 13... Bc6 {[%clk 0:02:55.5]}
14. O-O {[%clk 0:02:46.3]} 14... Ned7 {[%clk 0:02:37.9]} 15. Kh2 {[%clk
0:02:25.9]} 15... b5 {[%clk 0:02:30.2]} 16. Rfe1 {[%clk 0:02:14.1]} 16... Qb6
{[%clk 0:02:26.4]} 17. Nd4 {[%clk 0:02:12]} 17... a6 {[%clk 0:02:20.9]} 18. Nxc6
{[%clk 0:02:07.7]} 18... Qxc6 {[%clk 0:02:21.9]} 19. Nd5 {[%clk 0:02:05.4]}
19... Qxc2 {[%clk 0:02:19.8]} 20. Rc1 {[%clk 0:02:03.5]} 20... Qxc1 {[%clk
0:02:10.7]} 21. Rxc1 {[%clk 0:02:02.9]} 21... Rxc1 {[%clk 0:02:09.1]} 22. Qxc1
{[%clk 0:02:03.8]} 1-0

[Event "*** Titled Tuesday 3|2 Blitz"]
[Site "Chess.com"]
[Date "2016.02.02"]
[Round "2"]
[White "pedromartinez91"]
[Black "Parthenope"]
[Result "1-0"]
[WhiteElo "1958"]
[BlackElo "1753"]
[TimeControl "180+2"]
[EndTime "11:20:38 PST"]
[Termination "pedromartinez91 won by resignation"]

1. e4 {[%clk 0:03:01.9]} 1... c5 {[%clk 0:03:00.6]} 2. Nf3 {[%clk 0:03:02.8]}
2... d6 {[%clk 0:03:01.4]} 3. Bb5+ {[%clk 0:03:03.3]} 3... Bd7 {[%clk
0:03:01.4]} 4. Bxd7+ {[%clk 0:03:03.2]} 4... Qxd7 {[%clk 0:03:03.3]} 5. O-O
{[%clk 0:03:03.1]} 5... Nc6 {[%clk 0:02:55.7]} 6. c3 {[%clk 0:03:04]} 6... Nf6
{[%clk 0:02:42.8]} 7. d4 {[%clk 0:03:03.4]} 7... Nxe4 {[%clk 0:02:03.6]} 8. d5
{[%clk 0:03:02.2]} 8... Ne5 {[%clk 0:01:25.9]} 9. Re1 {[%clk 0:03:02.2]} 9...
Nxf3+ {[%clk 0:01:22.7]} 10. Qxf3 {[%clk 0:03:02.3]} 10... Nf6 {[%clk
0:01:21.5]} 11. c4 {[%clk 0:03:02.5]} 11... g6 {[%clk 0:01:12.9]} 12. Qxf6
{[%clk 0:03:00.4]} 12... Rg8 {[%clk 0:01:12.9]} 13. Nc3 {[%clk 0:02:58.5]} 13...
Bg7 {[%clk 0:01:12.2]} 14. Qf3 {[%clk 0:02:57]} 14... h5 {[%clk 0:00:49.1]} 15.
Bg5 {[%clk 0:02:51.4]} 1-0

[Event "*** Titled Tuesday 3|2 Blitz"]
[Site "Chess.com"]
[Date "2016.02.02"]
[Round "2"]
[White "GMG"]
[Black "jcgs1030"]
[Result "1-0"]
[WhiteElo "2443"]
[BlackElo "2191"]
[TimeControl "180+2"]
[EndTime "11:21:51 PST"]
[Termination "GMG won by resignation"]

1. d4 {[%clk 0:03:01.9]} 1... c5 {[%clk 0:03:01.9]} 2. d5 {[%clk 0:02:59.4]}
2... e5 {[%clk 0:03:02.7]} 3. e4 {[%clk 0:02:57.9]} 3... d6 {[%clk 0:03:01.9]}
4. c4 {[%clk 0:02:56.2]} 4... Nf6 {[%clk 0:03:02.8]} 5. Nc3 {[%clk 0:02:56.6]}
5... Be7 {[%clk 0:03:04.3]} 6. g3 {[%clk 0:02:51.4]} 6... Nbd7 {[%clk
0:03:05.3]} 7. Bg2 {[%clk 0:02:52.7]} 7... Nf8 {[%clk 0:03:06.2]} 8. Nge2 {[%clk
0:02:47.8]} 8... Ng6 {[%clk 0:03:06.6]} 9. O-O {[%clk 0:02:48.3]} 9... h5 {[%clk
0:03:07.6]} 10. f4 {[%clk 0:02:47.1]} 10... exf4 {[%clk 0:03:07.8]} 11. gxf4
{[%clk 0:02:47.9]} 11... Ng4 {[%clk 0:03:07.6]} 12. h3 {[%clk 0:02:41.3]} 12...
Nh6 {[%clk 0:03:04.6]} 13. Ng3 {[%clk 0:02:38.8]} 13... h4 {[%clk 0:03:02.4]}
14. Nh5 {[%clk 0:02:37.2]} 14... Kf8 {[%clk 0:03:03.1]} 15. f5 {[%clk
0:02:26.6]} 15... Ne5 {[%clk 0:03:01.3]} 16. Bf4 {[%clk 0:01:47.9]} 16... Bf6
{[%clk 0:02:57.1]} 17. Qe2 {[%clk 0:01:47.5]} 17... Ng8 {[%clk 0:02:56.6]} 18.
Kh1 {[%clk 0:01:40.1]} 18... b6 {[%clk 0:02:41]} 19. Bf3 {[%clk 0:01:36.6]}
19... Ne7 {[%clk 0:02:36.5]} 20. Rg1 {[%clk 0:01:27.4]} 20... Rh7 {[%clk
0:02:35.6]} 21. Rg2 {[%clk 0:01:28]} 21... Bxf5 {[%clk 0:02:26.3]} 22. Nxf6
{[%clk 0:01:20.9]} 22... gxf6 {[%clk 0:02:24.2]} 23. exf5 {[%clk 0:01:21.4]}
23... Nxf5 {[%clk 0:02:25.2]} 24. Be4 {[%clk 0:01:21.3]} 24... Qd7 {[%clk
0:02:24.5]} 25. Bxe5 {[%clk 0:01:15.8]} 25... fxe5 {[%clk 0:02:13.1]} 26. Qg4
{[%clk 0:01:15.1]} 1-0